Workbook

Sheet DROP Inlet
A1: Project Name: | L1: IaDropInlet.xls Ver 1.10
A2: Computed by: | F2: Outflow, CFS | J2: =IF(Y17=0,"","Void - Press Compute") -> 
A3: Date: | F3: Weir | G3: Inlet Orfice | H3: Barrel Orifice | I3: Full Pipe | J3: Structure Outflow, CFS
A4: Checked by: | E4: HW | F4: cfs | G4: cfs | I4: cfs | J4: cfs | L4: Controlling | O4: Intersection of Weir & Full Pipe Flow | Q4: Barrel Orifice Check | R4: Inlet Orifice Check
A5: Date: | D5: Elev | E5: Ft | F5: Weir | G5: Inlet Orfice | I5: Full Pipe | J5: Struct | L5: Factor | O5: =MAX(O6:O205) -> 106.116358 | Q5: =SUM(Q6:Q205) -> 0 | R5: =SUM(R6:R205) -> 0 | S5: Full Pipe Flow
A6: Input Data | D6: =IF(crest="","",crest) -> 105 | E6: =IF(D6="","",D6-crest) -> 0 | F6: =IF(E6="","",3.33*E6^1.5*(WeirLnet)) -> 0 | G6: =IF(E6="","",Rarea*0.61*(64.4*E6)^0.5) -> 0 | H6: =IF(D6="","",Barea*BOcoeff*(64.4*(D6-(invert+Pipe_Diam/24)))^0.5) -> 43.49783433 | I6: =IF(E6="","",Barea*((64.4*(D6-TailW))/(1+Entrance_Coeff+km+Kp*Pipe_Len))^0.5) -> 40.01903003 | J6: =IF(E6="","",MIN(F6:I6)) -> 0 | L6: =IF(E6="","",IF(J6=F6,"Weir Flow",IF(J6=G6,"Inlet Orifice",IF(J6=H6,"Barrel Orifice","Full Pipe Flow")))) -> Weir Flow | N6: =IF(F6>I6,TRUE, FALSE) -> FALSE | Q6: =IF(E6="","",IF(J6=F6,0,IF(J6=G6,0,IF(J6=H6,1,0)))) -> 0 | R6: =IF(E6="","",IF(J6=F6,0,IF(J6=G6,1,0))) -> 0
A7: Riser Type & Diameter (in) | B7: =IF(ISNUMBER(Riser_Diam),"Circular","D x 3D") -> Circular | C7: 42 | D7: =IF(D6="","",IF(D6>=high_water,"",IF(L6="Full Pipe Flow",(INT((D6-crest+0.01)/change_inc)+1)*change_inc+crest,D6+NonFPincr))) -> 105.1 | E7: =IF(D7="","",D7-crest) -> 0.1 | F7: 1.105224339 | G7: 14.89356752 | H7: =IF(D7="","",Barea*BOcoeff*(64.4*(D7-(invert+Pipe_Diam/24)))^0.5) -> 43.7688515 | I7: =IF(E7="","",Barea*((64.4*(D7-TailW))/(1+Entrance_Coeff+km+Kp*Pipe_Len))^0.5) -> 40.13004003 | J7: =IF(E7="","",MIN(F7:I7)) -> 1.105224339 | L7: =IF(E7="","",IF(J7=F7,"Weir Flow",IF(J7=G7,"Inlet Orifice",IF(J7=H7,"Barrel Orifice","Full Pipe Flow")))) -> Weir Flow | N7: =IF(F7>I7,TRUE, FALSE) -> FALSE | O7: =IF(AND(NOT(N7),N8),(F7-I7)/((I8-I7)/(D8-D7)-(F8-F7)/(D8-D7))+D7,"") ->  | Q7: =IF(E7="","",IF(J7=F7,0,IF(J7=G7,0,IF(J7=H7,1,0)))) -> 0 | R7: =IF(E7="","",IF(J7=F7,0,IF(J7=G7,1,0))) -> 0 | S7: =IF(D7="","",IF(I7=J7,I7,"")) -> 
A8: Length of Weir Obstruction(ft) | C8: 0.5 | D8: =IF(D7="","",IF(D7>=high_water,"",IF(L7="Full Pipe Flow",(INT((D7-crest+0.01)/change_inc)+1)*change_inc+crest,D7+NonFPincr))) -> 105.2 | E8: =IF(D8="","",D8-crest) -> 0.2 | F8: 3.1260465 | G8: 21.06268519 | H8: 44.03820082 | I8: 40.2407438 | J8: 3.1260465 | L8: Weir Flow | N8: FALSE | O8: =IF(AND(NOT(N8),N9),(F8-I8)/((I9-I8)/(D9-D8)-(F9-F8)/(D9-D8))+D8,"") ->  | Q8: 0 | R8: 0 | Y8: Max Full Pipe Flow | Z8: =MAX(I6:I205) -> 46.20999552
A9: =IF(ISNUMBER(Riser_Diam),"","Radius of crest rounding, (in)") ->  | C9: 6 | D9: 105.3 | E9: 0.3 | F9: 5.742914128 | G9: 25.79641566 | H9: 44.30591271 | I9: 40.35114385 | J9: 5.742914128 | L9: Weir Flow | N9: FALSE | Q9: 0 | R9: 0 | Y9: Max Y for Chart | Z9: =5*INT(1+(1.25*Z8/5)) -> 60
A10: Principal Spillway Crest Elev (ft) | C10: 105 | D10: 105.4 | E10: 0.4 | F10: 8.841794715 | G10: 29.78713505 | H10: 44.57201668 | I10: 40.46124268 | J10: 8.841794715 | L10: Weir Flow | N10: FALSE | Q10: 0 | R10: 0
A11: Invert of Barrel Elevation (ft) | C11: 96 | D11: 105.5 | E11: 0.5 | F11: 12.35678377 | G11: 33.30302941 | H11: 44.83654136 | I11: 40.57104272 | J11: 12.35678377 | L11: Weir Flow | N11: FALSE | Q11: 0 | R11: 0
A12: Barrel Orifice Coefficient (C) | C12: 0.61 | D12: 105.6 | E12: 0.6 | F12: 16.2434141 | G12: 36.48164088 | H12: 45.09951453 | I12: 40.68054641 | J12: 16.2434141 | L12: Weir Flow | N12: FALSE | Q12: 0 | R12: 0
A13: Pipe Diameter (in) | C13: 24 | D13: 105.7 | E13: 0.7 | F13: 20.46904121 | G13: 39.4046758 | H13: 45.36096318 | I13: 40.78975613 | J13: 20.46904121 | L13: Weir Flow | N13: FALSE | Q13: 0 | R13: 0 | W13: Full Pipe increment1= | X13: =IF(change_inc1="",NonFPincr,change_inc1) -> 0.2
A14: Pipe Length (ft) | C14: 112 | D14: 105.8 | E14: 0.8 | F14: 25.008372 | G14: 42.12537037 | H14: 45.62091353 | I14: 40.89867423 | J14: 25.008372 | L14: Weir Flow | N14: FALSE | Q14: 0 | R14: 0 | W14: Non Full Pipe Increment= | X14: 0.1
A15: Entrance Coefficient 'Ke' | C15: 1 | D15: 105.9 | E15: 0.9 | F15: 29.84105716 | G15: 44.68070257 | H15: 45.87939102 | I15: 41.00730304 | J15: 29.84105716 | L15: Weir Flow | N15: FALSE | Q15: 0 | R15: 0
A16: Mannings 'n-value' | C16: 0.025 | D16: 106 | E16: 1 | F16: 34.95026238 | G16: 47.09759586 | H16: 46.13642044 | I16: 41.11564485 | J16: 34.95026238 | L16: Weir Flow | N16: FALSE | Q16: 0 | R16: 0
A17: Elbow Elev (if None, Leave 'BLANK') | D17: 106.1 | E17: 1.1 | F17: 40.32175887 | G17: 49.39637527 | H17: 46.39202583 | I17: 41.22370192 | J17: 40.32175887 | L17: Weir Flow | N17: FALSE | O17: 106.116358 | Q17: 0 | R17: 0
A18: Length of Outlet ('BLANK' if none) | D18: 106.2 | E18: 1.2 | F18: 45.94331303 | G18: 51.59283132 | H18: 46.64623061 | I18: 41.33147649 | J18: 41.33147649 | L18: Full Pipe Flow | N18: TRUE | Q18: 0 | R18: 0 | S18: 41.33147649 | W18: Outlet Type
A19: Outlet Type | B19: Cantilever | D19: 106.4 | E19: 1.4 | F19: 57.89519139 | G19: 55.72662694 | H19: 47.15052884 | I19: 41.5461869 | J19: 41.5461869 | L19: Full Pipe Flow | N19: TRUE | Q19: 0 | R19: 0 | S19: 41.5461869 | W19: 1 | X19: Cantilever
A20: Outlet Elevation (ft) | C20: 86 | D20: 106.6 | E20: 1.6 | F20: 70.73435772 | G20: 59.5742701 | H20: 47.64949013 | I20: 41.75979338 | J20: 41.75979338 | L20: Full Pipe Flow | N20: TRUE | Q20: 0 | R20: 0 | S20: 41.75979338 | W20: 2 | X20: Slotted Flume
A21: Tailwater Elev (if unknown, leave 'Blank') | D21: 106.8 | E21: 1.8 | F21: 84.40325551 | G21: 63.18805556 | H21: 48.14328042 | I21: 41.97231279 | J21: 41.97231279 | L21: Full Pipe Flow | N21: TRUE | Q21: 0 | R21: 0 | S21: 41.97231279
A22: Auxiliary Spillway Elev (ft) | C22: 109 | D22: 107 | E22: 2 | F22: 98.85427013 | G22: 66.60605882 | H22: 48.63205722 | I22: 42.18376154 | J22: 42.18376154 | L22: Full Pipe Flow | N22: TRUE | Q22: 0 | R22: 0 | S22: 42.18376154
A23: Maximum Headwater Elev (ft) | C23: 111 | D23: 107.2 | E23: 2.2 | F23: 114.0471565 | G23: 69.85702384 | H23: 49.11597021 | I23: 42.39415567 | J23: 42.39415567 | L23: Full Pipe Flow | N23: TRUE | Q23: 0 | R23: 0 | S23: 42.39415567
A24: Elev Increment After Full Pipe Flow | C24: 0.2 | D24: 107.4 | E24: 2.4 | F24: 129.9473128 | G24: 72.96328177 | H24: 49.59516175 | I24: 42.6035108 | J24: 42.6035108 | L24: Full Pipe Flow | N24: TRUE | Q24: 0 | R24: 0 | S24: 42.6035108
D25: 107.6 | E25: 2.6 | F25: 146.5245723 | G25: 75.94259143 | H25: 50.06976742 | I25: 42.81184217 | J25: 42.81184217 | L25: Full Pipe Flow | N25: TRUE | Q25: 0 | R25: 0 | S25: 42.81184217
A26: Basic Output | D26: 107.8 | E26: 2.8 | F26: 163.7523297 | G26: 78.80935161 | H26: 50.53991639 | I26: 43.01916465 | J26: 43.01916465 | L26: Full Pipe Flow | N26: TRUE | Q26: 0 | R26: 0 | S26: 43.01916465
B27: Full Pipe Flow - Max. Outflow (cfs): | C27: =MAX(S7:S205) -> 46.20999552 | D27: 108 | E27: 3 | F27: 181.6068905 | G27: 81.57542895 | H27: 51.00573192 | I27: 43.22549277 | J27: 43.22549277 | L27: Full Pipe Flow | N27: TRUE | Q27: 0 | R27: 0 | S27: 43.22549277 | T27: NOTE: Pipe slope computed to be greater than friction slope - but 5D is being used - OK
B28: Full Pipe Flow - Max. Velocity (fps): | C28: =MAX(S7:S205)/Barea -> 14.70909841 | D28: 108.2 | E28: 3.2 | F28: 200.066976 | G28: 84.25074074 | H28: 51.46733166 | I28: 43.43084068 | J28: 43.43084068 | L28: Full Pipe Flow | N28: TRUE | Q28: 0 | R28: 0 | S28: 43.43084068 | T28: NOTE: Pipe slope computed to be greater than friction slope - a 2D riser might improve flow characteristics.
B29: Useable Weir Length (Ft): | C29: =IF(ISNUMBER(Riser_Diam),(PI()*Riser_Diam/12)-WeirObs,Pipe_Diam*6/12+4*radius/12-WeirObs) -> 10.49557429 | D29: 108.4 | E29: 3.4 | F29: 219.1133385 | G29: 86.84367578 | H29: 51.92482805 | I29: 43.63522224 | J29: 43.63522224 | L29: Full Pipe Flow | N29: TRUE | Q29: 0 | R29: 0 | S29: 43.63522224 | T29: NOTE: Pipe slope computed to be greater than friction slope - a 5D riser can eliminate flow problems
B30: Riser Area (Sq Ft): | C30: =IF(ISNUMBER(Riser_Diam),(Riser_Diam/24)^2*PI(),3*Pipe_Diam^2/144) -> 9.621127502 | D30: 108.6 | E30: 3.6 | F30: 238.7284573 | G30: 89.36140515 | H30: 52.37832861 | I30: 43.83865095 | J30: 43.83865095 | L30: Full Pipe Flow | N30: TRUE | Q30: 0 | R30: 0 | S30: 43.83865095
B31: Barrel Area (Sq Ft): | C31: =(Pipe_Diam/24)^2* PI() -> 3.141592654 | D31: 108.8 | E31: 3.8 | F31: 258.896295 | G31: 91.8101162 | H31: 52.82793624 | I31: 44.04114002 | J31: 44.04114002 | L31: Full Pipe Flow | N31: TRUE | Q31: 0 | R31: 0 | S31: 44.04114002 | T31: NOTE: Barrel Orifice control can be eliminated by increasing the riser depth.
B32: Kp: | C32: =5087*Mannings^2/Pipe_Diam^(4/3) -> 0.04592615628 | D32: 109 | E32: 4 | F32: 279.602099 | G32: 94.19519173 | H32: 53.27374952 | I32: 44.24270236 | J32: 44.24270236 | L32: Full Pipe Flow | N32: TRUE | Q32: 0 | R32: 0 | S32: 44.24270236 | T32: NOTE: Inlet Orifice control can be eliminated by increasing the riser diameter.
B33: Friction Slope (HW at the A.S. Crest): | C33: =((emerg-(outlet+0.6*Pipe_Diam/12))*Kp)/(Kp*Pipe_Len+Entrance_Coeff+1) -> 0.1401495124 | D33: 109.2 | E33: 4.2 | F33: 300.832239 | G33: 96.5213492 | H33: 53.7158629 | I33: 44.44335056 | J33: 44.44335056 | L33: Full Pipe Flow | N33: TRUE | Q33: 0 | R33: 0 | S33: 44.44335056 | T33: VOID: Principal Spillway inlet may not be lower than the barrel invert elevation.
B34: Pipe Slope: | C34: =IF(OR(elbow="",len_outlet=""),TAN(ASIN((invert-outlet)/Pipe_Len)),TAN(ASIN((invert-elbow)/(Pipe_Len-len_outlet)))) -> 0.0896437465 | D34: 109.4 | E34: 4.4 | F34: 322.574071 | G34: 98.79275054 | H34: 54.15436702 | I34: 44.64309696 | J34: 44.64309696 | L34: Full Pipe Flow | N34: TRUE | Q34: 0 | R34: 0 | S34: 44.64309696 | T34: Warning: Principal Spillway outlet is higher than the barrel invert elevation.
B35: Outlet Elbow Angle (deg): | C35: =IF(OR(elbow="",len_outlet=""),0,ROUND((180/PI())*(ATAN(PipeSlope)-ASIN((elbow-outlet)/len_outlet)),0)) -> 0 | D35: 109.6 | E35: 4.6 | F35: 344.815824 | G35: 101.0130896 | H35: 54.58934884 | I35: 44.84195361 | J35: 44.84195361 | L35: Full Pipe Flow | N35: TRUE | Q35: 0 | R35: 0 | S35: 44.84195361
A36: Maximum Barrel Invert Elevation for avoiding Barrel Orifice Control: | D36: 109.8 | E36: 4.8 | F36: 367.5465042 | G36: 103.1856626 | H36: 55.02089191 | I36: 45.0399323 | J36: 45.0399323 | L36: Full Pipe Flow | N36: TRUE | Q36: 0 | R36: 0 | S36: 45.0399323 | T36: Warning: Please check the elevation of the elbow.
C37: =Weir_FP_cross-((Weir_FP_cross-TailW)/(1+Entrance_Coeff+km+Kp*Pipe_Len))/(BOcoeff^2)-Pipe_Diam/24 -> 97.92484145 | D37: 110 | E37: 5 | F37: 390.7558125 | G37: 105.3134259 | H37: 55.44907652 | I37: 45.23704454 | J37: 45.23704454 | L37: Full Pipe Flow | N37: TRUE | Q37: 0 | R37: 0 | S37: 45.23704454
B38: Km: | C38: =IF(ElAngle>30,30*Mannings/3,ABS(ElAngle*Mannings/3)) -> 0 | D38: 110.2 | E38: 5.2 | F38: =IF(E38="","",3.33*E38^1.5*(WeirLnet)) -> 414.4340747 | G38: =IF(E38="","",Rarea*0.61*(64.4*E38)^0.5) -> 107.3990428 | H38: 55.87397987 | I38: 45.43330162 | J38: 45.43330162 | L38: Full Pipe Flow | N38: TRUE | Q38: 0 | R38: 0 | S38: 45.43330162 | T38: Warning: The Principal Spillway elevation is lower than the top of the barrel.
B39: Tailwater Elev Used For Full Pipe Flow: | C39: =MAX(TWentered,IF(OutType="Slotted Flume", outlet,Pipe_Diam/12*0.5+outlet)) -> 87 | D39: 110.4 | E39: 5.4 | F39: 438.5721806 | G39: 109.4449227 | H39: 56.29567627 | I39: 45.62871457 | J39: 45.62871457 | L39: Full Pipe Flow | N39: TRUE | Q39: 0 | R39: 0 | S39: =IF(D39="","",IF(I39=J39,I39,"")) -> 45.62871457
D40: 110.6 | E40: 5.6 | F40: 463.1615311 | G40: 111.4532539 | H40: 56.71423724 | I40: 45.82329419 | J40: 45.82329419 | L40: Full Pipe Flow | N40: TRUE | Q40: 0 | R40: 0 | S40: 45.82329419 | T40: NOTE: The pipe slope is flatter than the outlet slope. Eliminate or lower the elbow.
A41: Notes & Warnings | D41: 110.8 | E41: 5.8 | F41: 488.1939924 | G41: 113.426031 | H41: 57.12973171 | I41: 46.01705106 | J41: 46.01705106 | L41: Full Pipe Flow | N41: TRUE | Q41: 0 | R41: 0 | S41: 46.01705106 | T41: VOID: The elevation difference between the elbow & outlet cannot be greater than the outlet length
A42: =IF(OR(len_outlet="",elbow=""),"",IF((elbow-outlet)/len_outlet>1,T41,IF(ElAngle<0,T40,""))) ->  | D42: 111 | E42: 6 | F42: 513.6618552 | G42: 115.365078 | H42: 57.54222611 | I42: 46.20999552 | J42: 46.20999552 | L42: Full Pipe Flow | N42: TRUE | Q42: 0 | R42: 0 | S42: 46.20999552
N43: FALSE | T43: Warning: Please enter a Mannings N value (positive number)
N44: FALSE
A45: =IF(Mannings<=0,T43,IF(C34>C33,IF((crest-invert)>=5*Pipe_Diam/12,T27,IF((crest-invert)>=2*Pipe_Diam/12,T29,T28)),"")) ->  | N45: FALSE
N46: FALSE
N47: FALSE
N48: FALSE
A49: =IF(Q5>0,T31,"") ->  | N49: FALSE
N50: FALSE
N51: FALSE
A52: =IF(crest<invert,T33,IF(outlet>invert,T34,IF(elbow<>"",IF(OR(elbow<outlet,invert<elbow,elbow-outlet>len_outlet),T36,""),""))) ->  | N52: FALSE
N53: FALSE
N54: FALSE
A55: =IF(crest<=(invert+Pipe_Diam/12),T38,"") ->  | N55: FALSE
N56: FALSE
N57: FALSE
A58: =IF(IOcheck>0,T32,"") ->  | N58: FALSE
N59: FALSE
N60: FALSE
N61: FALSE
N62: FALSE
N63: FALSE
N64: FALSE
N65: FALSE
N66: FALSE
N67: FALSE
N68: FALSE
N69: FALSE
F70: =IF(E70="","",3.33*E70^1.5*(WeirLnet)) ->  | G70: =IF(E70="","",Rarea*0.61*(64.4*E70)^0.5) ->  | N70: FALSE
H71: =IF(D71="","",Barea*BOcoeff*(64.4*(D71-(invert+Pipe_Diam/24)))^0.5) ->  | I71: =IF(E71="","",Barea*((64.4*(D71-TailW))/(1+Entrance_Coeff+km+Kp*Pipe_Len))^0.5) ->  | J71: =IF(E71="","",MIN(F71:I71)) ->  | L71: =IF(E71="","",IF(J71=F71,"Weir Flow",IF(J71=G71,"Inlet Orifice",IF(J71=H71,"Barrel Orifice","Full Pipe Flow")))) ->  | N71: =IF(F71>I71,TRUE, FALSE) -> FALSE | Q71: =IF(E71="","",IF(J71=F71,0,IF(J71=G71,0,IF(J71=H71,1,0)))) ->  | R71: =IF(E71="","",IF(J71=F71,0,IF(J71=G71,1,0))) ->  | S71: =IF(D71="","",IF(I71=J71,I71,"")) -> 
D72: =IF(D71="","",IF(D71>=high_water,"",IF(L71="Full Pipe Flow",(INT((D71-crest+0.01)/change_inc)+1)*change_inc+crest,D71+NonFPincr))) ->  | E72: =IF(D72="","",D72-crest) ->  | N72: FALSE | O72: =IF(AND(NOT(N72),N73),(F72-I72)/((I73-I72)/(D73-D72)-(F73-F72)/(D73-D72))+D72,"") -> 
N73: FALSE
N74: FALSE
N75: FALSE
N76: FALSE
N77: FALSE
N78: FALSE
N79: FALSE
N80: FALSE
N81: FALSE
N82: FALSE
N83: FALSE
N84: FALSE
N85: FALSE
N86: FALSE
N87: FALSE
N88: FALSE
N89: FALSE
N90: FALSE
N91: FALSE
N92: FALSE
N93: FALSE
N94: FALSE
N95: FALSE
N96: FALSE
N97: FALSE
N98: FALSE
N99: FALSE
N100: FALSE
N101: FALSE
F102: =IF(E102="","",3.33*E102^1.5*(WeirLnet)) ->  | G102: =IF(E102="","",Rarea*0.61*(64.4*E102)^0.5) ->  | N102: FALSE
N103: FALSE | S103: =IF(D103="","",IF(I103=J103,I103,"")) -> 
N104: FALSE
N105: FALSE
N106: FALSE
N107: FALSE
N108: FALSE
N109: FALSE
N110: FALSE
N111: FALSE
N112: FALSE
N113: FALSE
N114: FALSE
N115: FALSE
N116: FALSE
N117: FALSE
N118: FALSE
N119: FALSE
N120: FALSE
N121: FALSE
N122: FALSE
N123: FALSE
N124: FALSE
N125: FALSE
N126: FALSE
N127: FALSE
N128: FALSE
N129: FALSE
N130: FALSE
N131: FALSE
N132: FALSE
N133: FALSE
F134: =IF(E134="","",3.33*E134^1.5*(WeirLnet)) ->  | G134: =IF(E134="","",Rarea*0.61*(64.4*E134)^0.5) ->  | N134: FALSE
H135: =IF(D135="","",Barea*BOcoeff*(64.4*(D135-(invert+Pipe_Diam/24)))^0.5) ->  | I135: =IF(E135="","",Barea*((64.4*(D135-TailW))/(1+Entrance_Coeff+km+Kp*Pipe_Len))^0.5) ->  | J135: =IF(E135="","",MIN(F135:I135)) ->  | L135: =IF(E135="","",IF(J135=F135,"Weir Flow",IF(J135=G135,"Inlet Orifice",IF(J135=H135,"Barrel Orifice","Full Pipe Flow")))) ->  | N135: =IF(F135>I135,TRUE, FALSE) -> FALSE | Q135: =IF(E135="","",IF(J135=F135,0,IF(J135=G135,0,IF(J135=H135,1,0)))) ->  | R135: =IF(E135="","",IF(J135=F135,0,IF(J135=G135,1,0))) ->  | S135: =IF(D135="","",IF(I135=J135,I135,"")) -> 
D136: =IF(D135="","",IF(D135>=high_water,"",IF(L135="Full Pipe Flow",(INT((D135-crest+0.01)/change_inc)+1)*change_inc+crest,D135+NonFPincr))) ->  | E136: =IF(D136="","",D136-crest) ->  | N136: FALSE | O136: =IF(AND(NOT(N136),N137),(F136-I136)/((I137-I136)/(D137-D136)-(F137-F136)/(D137-D136))+D136,"") -> 
N137: FALSE
N138: FALSE
N139: FALSE
N140: FALSE
N141: FALSE
N142: FALSE
N143: FALSE
N144: FALSE
N145: FALSE
N146: FALSE
N147: FALSE
N148: FALSE
N149: FALSE
N150: FALSE
N151: FALSE
N152: FALSE
N153: FALSE
N154: FALSE
N155: FALSE
N156: FALSE
N157: FALSE
N158: FALSE
N159: FALSE
N160: FALSE
N161: FALSE
N162: FALSE
N163: FALSE
N164: FALSE
N165: FALSE
F166: =IF(E166="","",3.33*E166^1.5*(WeirLnet)) ->  | G166: =IF(E166="","",Rarea*0.61*(64.4*E166)^0.5) ->  | N166: FALSE
N167: FALSE | S167: =IF(D167="","",IF(I167=J167,I167,"")) -> 
N168: FALSE
N169: FALSE
N170: FALSE
N171: FALSE
N172: FALSE
N173: FALSE
N174: FALSE
N175: FALSE
N176: FALSE
N177: FALSE
N178: FALSE
N179: FALSE
N180: FALSE
N181: FALSE
N182: FALSE
N183: FALSE
N184: FALSE
N185: FALSE
N186: FALSE
N187: FALSE
N188: FALSE
N189: FALSE
N190: FALSE
N191: FALSE
N192: FALSE
N193: FALSE
N194: FALSE
N195: FALSE
N196: FALSE
N197: FALSE
F198: =IF(E198="","",3.33*E198^1.5*(WeirLnet)) ->  | G198: =IF(E198="","",Rarea*0.61*(64.4*E198)^0.5) ->  | N198: FALSE
H199: =IF(D199="","",Barea*BOcoeff*(64.4*(D199-(invert+Pipe_Diam/24)))^0.5) ->  | I199: =IF(E199="","",Barea*((64.4*(D199-TailW))/(1+Entrance_Coeff+km+Kp*Pipe_Len))^0.5) ->  | J199: =IF(E199="","",MIN(F199:I199)) ->  | L199: =IF(E199="","",IF(J199=F199,"Weir Flow",IF(J199=G199,"Inlet Orifice",IF(J199=H199,"Barrel Orifice","Full Pipe Flow")))) ->  | N199: =IF(F199>I199,TRUE, FALSE) -> FALSE | Q199: =IF(E199="","",IF(J199=F199,0,IF(J199=G199,0,IF(J199=H199,1,0)))) ->  | R199: =IF(E199="","",IF(J199=F199,0,IF(J199=G199,1,0))) ->  | S199: =IF(D199="","",IF(I199=J199,I199,"")) -> 
D200: =IF(D199="","",IF(D199>=high_water,"",IF(L199="Full Pipe Flow",(INT((D199-crest+0.01)/change_inc)+1)*change_inc+crest,D199+NonFPincr))) ->  | E200: =IF(D200="","",D200-crest) ->  | N200: FALSE | O200: =IF(AND(NOT(N200),N201),(F200-I200)/((I201-I200)/(D201-D200)-(F201-F200)/(D201-D200))+D200,"") -> 
... 5 more rows

Sheet Flow Data (hidden)
A1: Elev | B1: Weir | C1: Inlet Orfice | D1: Barrel Orifice | E1: Full Pipe | F1: Structure Outflow
A2: ='DROP Inlet'!D6 -> 105 | B2: ='DROP Inlet'!F6 -> 0 | C2: ='DROP Inlet'!G6 -> 0 | D2: ='DROP Inlet'!H6 -> 43.49783433 | E2: ='DROP Inlet'!I6 -> 40.01903003 | F2: ='DROP Inlet'!J6 -> 0
A3: ='DROP Inlet'!D7 -> 105.1 | B3: ='DROP Inlet'!F7 -> 1.105224339 | C3: ='DROP Inlet'!G7 -> 14.89356752 | D3: ='DROP Inlet'!H7 -> 43.7688515 | E3: ='DROP Inlet'!I7 -> 40.13004003 | F3: ='DROP Inlet'!J7 -> 1.105224339
A4: ='DROP Inlet'!D8 -> 105.2 | B4: ='DROP Inlet'!F8 -> 3.1260465 | C4: ='DROP Inlet'!G8 -> 21.06268519 | D4: ='DROP Inlet'!H8 -> 44.03820082 | E4: ='DROP Inlet'!I8 -> 40.2407438 | F4: ='DROP Inlet'!J8 -> 3.1260465
A5: ='DROP Inlet'!D9 -> 105.3 | B5: ='DROP Inlet'!F9 -> 5.742914128 | C5: ='DROP Inlet'!G9 -> 25.79641566 | D5: ='DROP Inlet'!H9 -> 44.30591271 | E5: ='DROP Inlet'!I9 -> 40.35114385 | F5: ='DROP Inlet'!J9 -> 5.742914128
A6: ='DROP Inlet'!D10 -> 105.4 | B6: ='DROP Inlet'!F10 -> 8.841794715 | C6: ='DROP Inlet'!G10 -> 29.78713505 | D6: ='DROP Inlet'!H10 -> 44.57201668 | E6: ='DROP Inlet'!I10 -> 40.46124268 | F6: ='DROP Inlet'!J10 -> 8.841794715
A7: ='DROP Inlet'!D11 -> 105.5 | B7: ='DROP Inlet'!F11 -> 12.35678377 | C7: ='DROP Inlet'!G11 -> 33.30302941 | D7: ='DROP Inlet'!H11 -> 44.83654136 | E7: ='DROP Inlet'!I11 -> 40.57104272 | F7: ='DROP Inlet'!J11 -> 12.35678377
A8: ='DROP Inlet'!D12 -> 105.6 | B8: ='DROP Inlet'!F12 -> 16.2434141 | C8: ='DROP Inlet'!G12 -> 36.48164088 | D8: ='DROP Inlet'!H12 -> 45.09951453 | E8: ='DROP Inlet'!I12 -> 40.68054641 | F8: ='DROP Inlet'!J12 -> 16.2434141
A9: ='DROP Inlet'!D13 -> 105.7 | B9: ='DROP Inlet'!F13 -> 20.46904121 | C9: ='DROP Inlet'!G13 -> 39.4046758 | D9: ='DROP Inlet'!H13 -> 45.36096318 | E9: ='DROP Inlet'!I13 -> 40.78975613 | F9: ='DROP Inlet'!J13 -> 20.46904121
A10: ='DROP Inlet'!D14 -> 105.8 | B10: ='DROP Inlet'!F14 -> 25.008372 | C10: ='DROP Inlet'!G14 -> 42.12537037 | D10: ='DROP Inlet'!H14 -> 45.62091353 | E10: ='DROP Inlet'!I14 -> 40.89867423 | F10: ='DROP Inlet'!J14 -> 25.008372
A11: ='DROP Inlet'!D15 -> 105.9 | B11: ='DROP Inlet'!F15 -> 29.84105716 | C11: ='DROP Inlet'!G15 -> 44.68070257 | D11: ='DROP Inlet'!H15 -> 45.87939102 | E11: ='DROP Inlet'!I15 -> 41.00730304 | F11: ='DROP Inlet'!J15 -> 29.84105716
A12: ='DROP Inlet'!D16 -> 106 | B12: ='DROP Inlet'!F16 -> 34.95026238 | C12: ='DROP Inlet'!G16 -> 47.09759586 | D12: ='DROP Inlet'!H16 -> 46.13642044 | E12: ='DROP Inlet'!I16 -> 41.11564485 | F12: ='DROP Inlet'!J16 -> 34.95026238
A13: ='DROP Inlet'!D17 -> 106.1 | B13: ='DROP Inlet'!F17 -> 40.32175887 | C13: ='DROP Inlet'!G17 -> 49.39637527 | D13: ='DROP Inlet'!H17 -> 46.39202583 | E13: ='DROP Inlet'!I17 -> 41.22370192 | F13: ='DROP Inlet'!J17 -> 40.32175887
A14: ='DROP Inlet'!D18 -> 106.2 | B14: ='DROP Inlet'!F18 -> 45.94331303 | C14: ='DROP Inlet'!G18 -> 51.59283132 | D14: ='DROP Inlet'!H18 -> 46.64623061 | E14: ='DROP Inlet'!I18 -> 41.33147649 | F14: ='DROP Inlet'!J18 -> 41.33147649
A15: ='DROP Inlet'!D19 -> 106.4 | B15: ='DROP Inlet'!F19 -> 57.89519139 | C15: ='DROP Inlet'!G19 -> 55.72662694 | D15: ='DROP Inlet'!H19 -> 47.15052884 | E15: ='DROP Inlet'!I19 -> 41.5461869 | F15: ='DROP Inlet'!J19 -> 41.5461869
A16: ='DROP Inlet'!D20 -> 106.6 | B16: ='DROP Inlet'!F20 -> 70.73435772 | C16: ='DROP Inlet'!G20 -> 59.5742701 | D16: ='DROP Inlet'!H20 -> 47.64949013 | E16: ='DROP Inlet'!I20 -> 41.75979338 | F16: ='DROP Inlet'!J20 -> 41.75979338
A17: ='DROP Inlet'!D21 -> 106.8 | B17: ='DROP Inlet'!F21 -> 84.40325551 | C17: ='DROP Inlet'!G21 -> 63.18805556 | D17: ='DROP Inlet'!H21 -> 48.14328042 | E17: ='DROP Inlet'!I21 -> 41.97231279 | F17: ='DROP Inlet'!J21 -> 41.97231279
A18: ='DROP Inlet'!D22 -> 107 | B18: ='DROP Inlet'!F22 -> 98.85427013 | C18: ='DROP Inlet'!G22 -> 66.60605882 | D18: ='DROP Inlet'!H22 -> 48.63205722 | E18: ='DROP Inlet'!I22 -> 42.18376154 | F18: ='DROP Inlet'!J22 -> 42.18376154
A19: ='DROP Inlet'!D23 -> 107.2 | B19: ='DROP Inlet'!F23 -> 114.0471565 | C19: ='DROP Inlet'!G23 -> 69.85702384 | D19: ='DROP Inlet'!H23 -> 49.11597021 | E19: ='DROP Inlet'!I23 -> 42.39415567 | F19: ='DROP Inlet'!J23 -> 42.39415567
A20: ='DROP Inlet'!D24 -> 107.4 | B20: ='DROP Inlet'!F24 -> 129.9473128 | C20: ='DROP Inlet'!G24 -> 72.96328177 | D20: ='DROP Inlet'!H24 -> 49.59516175 | E20: ='DROP Inlet'!I24 -> 42.6035108 | F20: ='DROP Inlet'!J24 -> 42.6035108
A21: ='DROP Inlet'!D25 -> 107.6 | B21: ='DROP Inlet'!F25 -> 146.5245723 | C21: ='DROP Inlet'!G25 -> 75.94259143 | D21: ='DROP Inlet'!H25 -> 50.06976742 | E21: ='DROP Inlet'!I25 -> 42.81184217 | F21: ='DROP Inlet'!J25 -> 42.81184217
A22: ='DROP Inlet'!D26 -> 107.8 | B22: ='DROP Inlet'!F26 -> 163.7523297 | C22: ='DROP Inlet'!G26 -> 78.80935161 | D22: ='DROP Inlet'!H26 -> 50.53991639 | E22: ='DROP Inlet'!I26 -> 43.01916465 | F22: ='DROP Inlet'!J26 -> 43.01916465
A23: ='DROP Inlet'!D27 -> 108 | B23: ='DROP Inlet'!F27 -> 181.6068905 | C23: ='DROP Inlet'!G27 -> 81.57542895 | D23: ='DROP Inlet'!H27 -> 51.00573192 | E23: ='DROP Inlet'!I27 -> 43.22549277 | F23: ='DROP Inlet'!J27 -> 43.22549277
A24: ='DROP Inlet'!D28 -> 108.2 | B24: ='DROP Inlet'!F28 -> 200.066976 | C24: ='DROP Inlet'!G28 -> 84.25074074 | D24: ='DROP Inlet'!H28 -> 51.46733166 | E24: ='DROP Inlet'!I28 -> 43.43084068 | F24: ='DROP Inlet'!J28 -> 43.43084068
A25: ='DROP Inlet'!D29 -> 108.4 | B25: ='DROP Inlet'!F29 -> 219.1133385 | C25: ='DROP Inlet'!G29 -> 86.84367578 | D25: ='DROP Inlet'!H29 -> 51.92482805 | E25: ='DROP Inlet'!I29 -> 43.63522224 | F25: ='DROP Inlet'!J29 -> 43.63522224
A26: ='DROP Inlet'!D30 -> 108.6 | B26: ='DROP Inlet'!F30 -> 238.7284573 | C26: ='DROP Inlet'!G30 -> 89.36140515 | D26: ='DROP Inlet'!H30 -> 52.37832861 | E26: ='DROP Inlet'!I30 -> 43.83865095 | F26: ='DROP Inlet'!J30 -> 43.83865095
A27: ='DROP Inlet'!D31 -> 108.8 | B27: ='DROP Inlet'!F31 -> 258.896295 | C27: ='DROP Inlet'!G31 -> 91.8101162 | D27: ='DROP Inlet'!H31 -> 52.82793624 | E27: ='DROP Inlet'!I31 -> 44.04114002 | F27: ='DROP Inlet'!J31 -> 44.04114002
A28: ='DROP Inlet'!D32 -> 109 | B28: ='DROP Inlet'!F32 -> 279.602099 | C28: ='DROP Inlet'!G32 -> 94.19519173 | D28: ='DROP Inlet'!H32 -> 53.27374952 | E28: ='DROP Inlet'!I32 -> 44.24270236 | F28: ='DROP Inlet'!J32 -> 44.24270236
A29: ='DROP Inlet'!D33 -> 109.2 | B29: ='DROP Inlet'!F33 -> 300.832239 | C29: ='DROP Inlet'!G33 -> 96.5213492 | D29: ='DROP Inlet'!H33 -> 53.7158629 | E29: ='DROP Inlet'!I33 -> 44.44335056 | F29: ='DROP Inlet'!J33 -> 44.44335056
A30: ='DROP Inlet'!D34 -> 109.4 | B30: ='DROP Inlet'!F34 -> 322.574071 | C30: ='DROP Inlet'!G34 -> 98.79275054 | D30: ='DROP Inlet'!H34 -> 54.15436702 | E30: ='DROP Inlet'!I34 -> 44.64309696 | F30: ='DROP Inlet'!J34 -> 44.64309696
A31: ='DROP Inlet'!D35 -> 109.6 | B31: ='DROP Inlet'!F35 -> 344.815824 | C31: ='DROP Inlet'!G35 -> 101.0130896 | D31: ='DROP Inlet'!H35 -> 54.58934884 | E31: ='DROP Inlet'!I35 -> 44.84195361 | F31: ='DROP Inlet'!J35 -> 44.84195361
A32: ='DROP Inlet'!D36 -> 109.8 | B32: ='DROP Inlet'!F36 -> 367.5465042 | C32: ='DROP Inlet'!G36 -> 103.1856626 | D32: ='DROP Inlet'!H36 -> 55.02089191 | E32: ='DROP Inlet'!I36 -> 45.0399323 | F32: ='DROP Inlet'!J36 -> 45.0399323
A33: ='DROP Inlet'!D37 -> 110 | B33: ='DROP Inlet'!F37 -> 390.7558125 | C33: ='DROP Inlet'!G37 -> 105.3134259 | D33: ='DROP Inlet'!H37 -> 55.44907652 | E33: ='DROP Inlet'!I37 -> 45.23704454 | F33: ='DROP Inlet'!J37 -> 45.23704454
A34: ='DROP Inlet'!D38 -> 110.2 | B34: ='DROP Inlet'!F38 -> 414.4340747 | C34: ='DROP Inlet'!G38 -> 107.3990428 | D34: ='DROP Inlet'!H38 -> 55.87397987 | E34: ='DROP Inlet'!I38 -> 45.43330162 | F34: ='DROP Inlet'!J38 -> 45.43330162
A35: ='DROP Inlet'!D39 -> 110.4 | B35: ='DROP Inlet'!F39 -> 438.5721806 | C35: ='DROP Inlet'!G39 -> 109.4449227 | D35: ='DROP Inlet'!H39 -> 56.29567627 | E35: ='DROP Inlet'!I39 -> 45.62871457 | F35: ='DROP Inlet'!J39 -> 45.62871457
A36: ='DROP Inlet'!D40 -> 110.6 | B36: ='DROP Inlet'!F40 -> 463.1615311 | C36: ='DROP Inlet'!G40 -> 111.4532539 | D36: ='DROP Inlet'!H40 -> 56.71423724 | E36: ='DROP Inlet'!I40 -> 45.82329419 | F36: ='DROP Inlet'!J40 -> 45.82329419
A37: ='DROP Inlet'!D41 -> 110.8 | B37: ='DROP Inlet'!F41 -> 488.1939924 | C37: ='DROP Inlet'!G41 -> 113.426031 | D37: ='DROP Inlet'!H41 -> 57.12973171 | E37: ='DROP Inlet'!I41 -> 46.01705106 | F37: ='DROP Inlet'!J41 -> 46.01705106
A38: ='DROP Inlet'!D42 -> 111 | B38: ='DROP Inlet'!F42 -> 513.6618552 | C38: ='DROP Inlet'!G42 -> 115.365078 | D38: ='DROP Inlet'!H42 -> 57.54222611 | E38: ='DROP Inlet'!I42 -> 46.20999552 | F38: ='DROP Inlet'!J42 -> 46.20999552
A39: ='DROP Inlet'!D43 ->  | B39: ='DROP Inlet'!F43 ->  | C39: ='DROP Inlet'!G43 ->  | D39: ='DROP Inlet'!H43 ->  | E39: ='DROP Inlet'!I43 ->  | F39: ='DROP Inlet'!J43 -> 
A40: ='DROP Inlet'!D44 ->  | B40: ='DROP Inlet'!F44 ->  | C40: ='DROP Inlet'!G44 ->  | D40: ='DROP Inlet'!H44 ->  | E40: ='DROP Inlet'!I44 ->  | F40: ='DROP Inlet'!J44 -> 
A41: ='DROP Inlet'!D45 ->  | B41: ='DROP Inlet'!F45 ->  | C41: ='DROP Inlet'!G45 ->  | D41: ='DROP Inlet'!H45 ->  | E41: ='DROP Inlet'!I45 ->  | F41: ='DROP Inlet'!J45 -> 
A42: ='DROP Inlet'!D46 ->  | B42: ='DROP Inlet'!F46 ->  | C42: ='DROP Inlet'!G46 ->  | D42: ='DROP Inlet'!H46 ->  | E42: ='DROP Inlet'!I46 ->  | F42: ='DROP Inlet'!J46 -> 
A43: ='DROP Inlet'!D47 ->  | B43: ='DROP Inlet'!F47 ->  | C43: ='DROP Inlet'!G47 ->  | D43: ='DROP Inlet'!H47 ->  | E43: ='DROP Inlet'!I47 ->  | F43: ='DROP Inlet'!J47 -> 
A44: ='DROP Inlet'!D48 ->  | B44: ='DROP Inlet'!F48 ->  | C44: ='DROP Inlet'!G48 ->  | D44: ='DROP Inlet'!H48 ->  | E44: ='DROP Inlet'!I48 ->  | F44: ='DROP Inlet'!J48 -> 
A45: ='DROP Inlet'!D49 ->  | B45: ='DROP Inlet'!F49 ->  | C45: ='DROP Inlet'!G49 ->  | D45: ='DROP Inlet'!H49 ->  | E45: ='DROP Inlet'!I49 ->  | F45: ='DROP Inlet'!J49 -> 
A46: ='DROP Inlet'!D50 ->  | B46: ='DROP Inlet'!F50 ->  | C46: ='DROP Inlet'!G50 ->  | D46: ='DROP Inlet'!H50 ->  | E46: ='DROP Inlet'!I50 ->  | F46: ='DROP Inlet'!J50 -> 
A47: ='DROP Inlet'!D51 ->  | B47: ='DROP Inlet'!F51 ->  | C47: ='DROP Inlet'!G51 ->  | D47: ='DROP Inlet'!H51 ->  | E47: ='DROP Inlet'!I51 ->  | F47: ='DROP Inlet'!J51 -> 
A48: ='DROP Inlet'!D52 ->  | B48: ='DROP Inlet'!F52 ->  | C48: ='DROP Inlet'!G52 ->  | D48: ='DROP Inlet'!H52 ->  | E48: ='DROP Inlet'!I52 ->  | F48: ='DROP Inlet'!J52 -> 
A49: ='DROP Inlet'!D53 ->  | B49: ='DROP Inlet'!F53 ->  | C49: ='DROP Inlet'!G53 ->  | D49: ='DROP Inlet'!H53 ->  | E49: ='DROP Inlet'!I53 ->  | F49: ='DROP Inlet'!J53 -> 
A50: ='DROP Inlet'!D54 ->  | B50: ='DROP Inlet'!F54 ->  | C50: ='DROP Inlet'!G54 ->  | D50: ='DROP Inlet'!H54 ->  | E50: ='DROP Inlet'!I54 ->  | F50: ='DROP Inlet'!J54 -> 
A51: ='DROP Inlet'!D55 ->  | B51: ='DROP Inlet'!F55 ->  | C51: ='DROP Inlet'!G55 ->  | D51: ='DROP Inlet'!H55 ->  | E51: ='DROP Inlet'!I55 ->  | F51: ='DROP Inlet'!J55 -> 
A52: ='DROP Inlet'!D56 ->  | B52: ='DROP Inlet'!F56 ->  | C52: ='DROP Inlet'!G56 ->  | D52: ='DROP Inlet'!H56 ->  | E52: ='DROP Inlet'!I56 ->  | F52: ='DROP Inlet'!J56 -> 
A53: ='DROP Inlet'!D57 ->  | B53: ='DROP Inlet'!F57 ->  | C53: ='DROP Inlet'!G57 ->  | D53: ='DROP Inlet'!H57 ->  | E53: ='DROP Inlet'!I57 ->  | F53: ='DROP Inlet'!J57 -> 
A54: ='DROP Inlet'!D58 ->  | B54: ='DROP Inlet'!F58 ->  | C54: ='DROP Inlet'!G58 ->  | D54: ='DROP Inlet'!H58 ->  | E54: ='DROP Inlet'!I58 ->  | F54: ='DROP Inlet'!J58 -> 
A55: ='DROP Inlet'!D59 ->  | B55: ='DROP Inlet'!F59 ->  | C55: ='DROP Inlet'!G59 ->  | D55: ='DROP Inlet'!H59 ->  | E55: ='DROP Inlet'!I59 ->  | F55: ='DROP Inlet'!J59 -> 
A56: ='DROP Inlet'!D60 ->  | B56: ='DROP Inlet'!F60 ->  | C56: ='DROP Inlet'!G60 ->  | D56: ='DROP Inlet'!H60 ->  | E56: ='DROP Inlet'!I60 ->  | F56: ='DROP Inlet'!J60 -> 
A57: ='DROP Inlet'!D61 ->  | B57: ='DROP Inlet'!F61 ->  | C57: ='DROP Inlet'!G61 ->  | D57: ='DROP Inlet'!H61 ->  | E57: ='DROP Inlet'!I61 ->  | F57: ='DROP Inlet'!J61 -> 
A58: ='DROP Inlet'!D62 ->  | B58: ='DROP Inlet'!F62 ->  | C58: ='DROP Inlet'!G62 ->  | D58: ='DROP Inlet'!H62 ->  | E58: ='DROP Inlet'!I62 ->  | F58: ='DROP Inlet'!J62 -> 
A59: ='DROP Inlet'!D63 ->  | B59: ='DROP Inlet'!F63 ->  | C59: ='DROP Inlet'!G63 ->  | D59: ='DROP Inlet'!H63 ->  | E59: ='DROP Inlet'!I63 ->  | F59: ='DROP Inlet'!J63 -> 
A60: ='DROP Inlet'!D64 ->  | B60: ='DROP Inlet'!F64 ->  | C60: ='DROP Inlet'!G64 ->  | D60: ='DROP Inlet'!H64 ->  | E60: ='DROP Inlet'!I64 ->  | F60: ='DROP Inlet'!J64 -> 
A61: ='DROP Inlet'!D65 ->  | B61: ='DROP Inlet'!F65 ->  | C61: ='DROP Inlet'!G65 ->  | D61: ='DROP Inlet'!H65 ->  | E61: ='DROP Inlet'!I65 ->  | F61: ='DROP Inlet'!J65 -> 
A62: ='DROP Inlet'!D66 ->  | B62: ='DROP Inlet'!F66 ->  | C62: ='DROP Inlet'!G66 ->  | D62: ='DROP Inlet'!H66 ->  | E62: ='DROP Inlet'!I66 ->  | F62: ='DROP Inlet'!J66 -> 
A63: ='DROP Inlet'!D67 ->  | B63: ='DROP Inlet'!F67 ->  | C63: ='DROP Inlet'!G67 ->  | D63: ='DROP Inlet'!H67 ->  | E63: ='DROP Inlet'!I67 ->  | F63: ='DROP Inlet'!J67 -> 
A64: ='DROP Inlet'!D68 ->  | B64: ='DROP Inlet'!F68 ->  | C64: ='DROP Inlet'!G68 ->  | D64: ='DROP Inlet'!H68 ->  | E64: ='DROP Inlet'!I68 ->  | F64: ='DROP Inlet'!J68 -> 
A65: ='DROP Inlet'!D69 ->  | B65: ='DROP Inlet'!F69 ->  | C65: ='DROP Inlet'!G69 ->  | D65: ='DROP Inlet'!H69 ->  | E65: ='DROP Inlet'!I69 ->  | F65: ='DROP Inlet'!J69 -> 
A66: ='DROP Inlet'!D70 ->  | B66: ='DROP Inlet'!F70 ->  | C66: ='DROP Inlet'!G70 ->  | D66: ='DROP Inlet'!H70 ->  | E66: ='DROP Inlet'!I70 ->  | F66: ='DROP Inlet'!J70 -> 
A67: ='DROP Inlet'!D71 ->  | B67: ='DROP Inlet'!F71 ->  | C67: ='DROP Inlet'!G71 ->  | D67: ='DROP Inlet'!H71 ->  | E67: ='DROP Inlet'!I71 ->  | F67: ='DROP Inlet'!J71 -> 
A68: ='DROP Inlet'!D72 ->  | B68: ='DROP Inlet'!F72 ->  | C68: ='DROP Inlet'!G72 ->  | D68: ='DROP Inlet'!H72 ->  | E68: ='DROP Inlet'!I72 ->  | F68: ='DROP Inlet'!J72 -> 
A69: ='DROP Inlet'!D73 ->  | B69: ='DROP Inlet'!F73 ->  | C69: ='DROP Inlet'!G73 ->  | D69: ='DROP Inlet'!H73 ->  | E69: ='DROP Inlet'!I73 ->  | F69: ='DROP Inlet'!J73 -> 
A70: ='DROP Inlet'!D74 ->  | B70: ='DROP Inlet'!F74 ->  | C70: ='DROP Inlet'!G74 ->  | D70: ='DROP Inlet'!H74 ->  | E70: ='DROP Inlet'!I74 ->  | F70: ='DROP Inlet'!J74 -> 
A71: ='DROP Inlet'!D75 ->  | B71: ='DROP Inlet'!F75 ->  | C71: ='DROP Inlet'!G75 ->  | D71: ='DROP Inlet'!H75 ->  | E71: ='DROP Inlet'!I75 ->  | F71: ='DROP Inlet'!J75 -> 
A72: ='DROP Inlet'!D76 ->  | B72: ='DROP Inlet'!F76 ->  | C72: ='DROP Inlet'!G76 ->  | D72: ='DROP Inlet'!H76 ->  | E72: ='DROP Inlet'!I76 ->  | F72: ='DROP Inlet'!J76 -> 
A73: ='DROP Inlet'!D77 ->  | B73: ='DROP Inlet'!F77 ->  | C73: ='DROP Inlet'!G77 ->  | D73: ='DROP Inlet'!H77 ->  | E73: ='DROP Inlet'!I77 ->  | F73: ='DROP Inlet'!J77 -> 
A74: ='DROP Inlet'!D78 ->  | B74: ='DROP Inlet'!F78 ->  | C74: ='DROP Inlet'!G78 ->  | D74: ='DROP Inlet'!H78 ->  | E74: ='DROP Inlet'!I78 ->  | F74: ='DROP Inlet'!J78 -> 
A75: ='DROP Inlet'!D79 ->  | B75: ='DROP Inlet'!F79 ->  | C75: ='DROP Inlet'!G79 ->  | D75: ='DROP Inlet'!H79 ->  | E75: ='DROP Inlet'!I79 ->  | F75: ='DROP Inlet'!J79 -> 
A76: ='DROP Inlet'!D80 ->  | B76: ='DROP Inlet'!F80 ->  | C76: ='DROP Inlet'!G80 ->  | D76: ='DROP Inlet'!H80 ->  | E76: ='DROP Inlet'!I80 ->  | F76: ='DROP Inlet'!J80 -> 
A77: ='DROP Inlet'!D81 ->  | B77: ='DROP Inlet'!F81 ->  | C77: ='DROP Inlet'!G81 ->  | D77: ='DROP Inlet'!H81 ->  | E77: ='DROP Inlet'!I81 ->  | F77: ='DROP Inlet'!J81 -> 
A78: ='DROP Inlet'!D82 ->  | B78: ='DROP Inlet'!F82 ->  | C78: ='DROP Inlet'!G82 ->  | D78: ='DROP Inlet'!H82 ->  | E78: ='DROP Inlet'!I82 ->  | F78: ='DROP Inlet'!J82 -> 
A79: ='DROP Inlet'!D83 ->  | B79: ='DROP Inlet'!F83 ->  | C79: ='DROP Inlet'!G83 ->  | D79: ='DROP Inlet'!H83 ->  | E79: ='DROP Inlet'!I83 ->  | F79: ='DROP Inlet'!J83 -> 
A80: ='DROP Inlet'!D84 ->  | B80: ='DROP Inlet'!F84 ->  | C80: ='DROP Inlet'!G84 ->  | D80: ='DROP Inlet'!H84 ->  | E80: ='DROP Inlet'!I84 ->  | F80: ='DROP Inlet'!J84 -> 
A81: ='DROP Inlet'!D85 ->  | B81: ='DROP Inlet'!F85 ->  | C81: ='DROP Inlet'!G85 ->  | D81: ='DROP Inlet'!H85 ->  | E81: ='DROP Inlet'!I85 ->  | F81: ='DROP Inlet'!J85 -> 
A82: ='DROP Inlet'!D86 ->  | B82: ='DROP Inlet'!F86 ->  | C82: ='DROP Inlet'!G86 ->  | D82: ='DROP Inlet'!H86 ->  | E82: ='DROP Inlet'!I86 ->  | F82: ='DROP Inlet'!J86 -> 
A83: ='DROP Inlet'!D87 ->  | B83: ='DROP Inlet'!F87 ->  | C83: ='DROP Inlet'!G87 ->  | D83: ='DROP Inlet'!H87 ->  | E83: ='DROP Inlet'!I87 ->  | F83: ='DROP Inlet'!J87 -> 
A84: ='DROP Inlet'!D88 ->  | B84: ='DROP Inlet'!F88 ->  | C84: ='DROP Inlet'!G88 ->  | D84: ='DROP Inlet'!H88 ->  | E84: ='DROP Inlet'!I88 ->  | F84: ='DROP Inlet'!J88 -> 
A85: ='DROP Inlet'!D89 ->  | B85: ='DROP Inlet'!F89 ->  | C85: ='DROP Inlet'!G89 ->  | D85: ='DROP Inlet'!H89 ->  | E85: ='DROP Inlet'!I89 ->  | F85: ='DROP Inlet'!J89 -> 
A86: ='DROP Inlet'!D90 ->  | B86: ='DROP Inlet'!F90 ->  | C86: ='DROP Inlet'!G90 ->  | D86: ='DROP Inlet'!H90 ->  | E86: ='DROP Inlet'!I90 ->  | F86: ='DROP Inlet'!J90 -> 
A87: ='DROP Inlet'!D91 ->  | B87: ='DROP Inlet'!F91 ->  | C87: ='DROP Inlet'!G91 ->  | D87: ='DROP Inlet'!H91 ->  | E87: ='DROP Inlet'!I91 ->  | F87: ='DROP Inlet'!J91 -> 
A88: ='DROP Inlet'!D92 ->  | B88: ='DROP Inlet'!F92 ->  | C88: ='DROP Inlet'!G92 ->  | D88: ='DROP Inlet'!H92 ->  | E88: ='DROP Inlet'!I92 ->  | F88: ='DROP Inlet'!J92 -> 
A89: ='DROP Inlet'!D93 ->  | B89: ='DROP Inlet'!F93 ->  | C89: ='DROP Inlet'!G93 ->  | D89: ='DROP Inlet'!H93 ->  | E89: ='DROP Inlet'!I93 ->  | F89: ='DROP Inlet'!J93 -> 
A90: ='DROP Inlet'!D94 ->  | B90: ='DROP Inlet'!F94 ->  | C90: ='DROP Inlet'!G94 ->  | D90: ='DROP Inlet'!H94 ->  | E90: ='DROP Inlet'!I94 ->  | F90: ='DROP Inlet'!J94 -> 
A91: ='DROP Inlet'!D95 ->  | B91: ='DROP Inlet'!F95 ->  | C91: ='DROP Inlet'!G95 ->  | D91: ='DROP Inlet'!H95 ->  | E91: ='DROP Inlet'!I95 ->  | F91: ='DROP Inlet'!J95 -> 
A92: ='DROP Inlet'!D96 ->  | B92: ='DROP Inlet'!F96 ->  | C92: ='DROP Inlet'!G96 ->  | D92: ='DROP Inlet'!H96 ->  | E92: ='DROP Inlet'!I96 ->  | F92: ='DROP Inlet'!J96 -> 
A93: ='DROP Inlet'!D97 ->  | B93: ='DROP Inlet'!F97 ->  | C93: ='DROP Inlet'!G97 ->  | D93: ='DROP Inlet'!H97 ->  | E93: ='DROP Inlet'!I97 ->  | F93: ='DROP Inlet'!J97 -> 
A94: ='DROP Inlet'!D98 ->  | B94: ='DROP Inlet'!F98 ->  | C94: ='DROP Inlet'!G98 ->  | D94: ='DROP Inlet'!H98 ->  | E94: ='DROP Inlet'!I98 ->  | F94: ='DROP Inlet'!J98 -> 
A95: ='DROP Inlet'!D99 ->  | B95: ='DROP Inlet'!F99 ->  | C95: ='DROP Inlet'!G99 ->  | D95: ='DROP Inlet'!H99 ->  | E95: ='DROP Inlet'!I99 ->  | F95: ='DROP Inlet'!J99 -> 
A96: ='DROP Inlet'!D100 ->  | B96: ='DROP Inlet'!F100 ->  | C96: ='DROP Inlet'!G100 ->  | D96: ='DROP Inlet'!H100 ->  | E96: ='DROP Inlet'!I100 ->  | F96: ='DROP Inlet'!J100 -> 
A97: ='DROP Inlet'!D101 ->  | B97: ='DROP Inlet'!F101 ->  | C97: ='DROP Inlet'!G101 ->  | D97: ='DROP Inlet'!H101 ->  | E97: ='DROP Inlet'!I101 ->  | F97: ='DROP Inlet'!J101 -> 
A98: ='DROP Inlet'!D102 ->  | B98: ='DROP Inlet'!F102 ->  | C98: ='DROP Inlet'!G102 ->  | D98: ='DROP Inlet'!H102 ->  | E98: ='DROP Inlet'!I102 ->  | F98: ='DROP Inlet'!J102 -> 
A99: ='DROP Inlet'!D103 ->  | B99: ='DROP Inlet'!F103 ->  | C99: ='DROP Inlet'!G103 ->  | D99: ='DROP Inlet'!H103 ->  | E99: ='DROP Inlet'!I103 ->  | F99: ='DROP Inlet'!J103 -> 
A100: ='DROP Inlet'!D104 ->  | B100: ='DROP Inlet'!F104 ->  | C100: ='DROP Inlet'!G104 ->  | D100: ='DROP Inlet'!H104 ->  | E100: ='DROP Inlet'!I104 ->  | F100: ='DROP Inlet'!J104 -> 
A101: ='DROP Inlet'!D105 ->  | B101: ='DROP Inlet'!F105 ->  | C101: ='DROP Inlet'!G105 ->  | D101: ='DROP Inlet'!H105 ->  | E101: ='DROP Inlet'!I105 ->  | F101: ='DROP Inlet'!J105 -> 
A102: ='DROP Inlet'!D106 ->  | B102: ='DROP Inlet'!F106 ->  | C102: ='DROP Inlet'!G106 ->  | D102: ='DROP Inlet'!H106 ->  | E102: ='DROP Inlet'!I106 ->  | F102: ='DROP Inlet'!J106 -> 
A103: ='DROP Inlet'!D107 ->  | B103: ='DROP Inlet'!F107 ->  | C103: ='DROP Inlet'!G107 ->  | D103: ='DROP Inlet'!H107 ->  | E103: ='DROP Inlet'!I107 ->  | F103: ='DROP Inlet'!J107 -> 
A104: ='DROP Inlet'!D108 ->  | B104: ='DROP Inlet'!F108 ->  | C104: ='DROP Inlet'!G108 ->  | D104: ='DROP Inlet'!H108 ->  | E104: ='DROP Inlet'!I108 ->  | F104: ='DROP Inlet'!J108 -> 
A105: ='DROP Inlet'!D109 ->  | B105: ='DROP Inlet'!F109 ->  | C105: ='DROP Inlet'!G109 ->  | D105: ='DROP Inlet'!H109 ->  | E105: ='DROP Inlet'!I109 ->  | F105: ='DROP Inlet'!J109 -> 
A106: ='DROP Inlet'!D110 ->  | B106: ='DROP Inlet'!F110 ->  | C106: ='DROP Inlet'!G110 ->  | D106: ='DROP Inlet'!H110 ->  | E106: ='DROP Inlet'!I110 ->  | F106: ='DROP Inlet'!J110 -> 
A107: ='DROP Inlet'!D111 ->  | B107: ='DROP Inlet'!F111 ->  | C107: ='DROP Inlet'!G111 ->  | D107: ='DROP Inlet'!H111 ->  | E107: ='DROP Inlet'!I111 ->  | F107: ='DROP Inlet'!J111 -> 
A108: ='DROP Inlet'!D112 ->  | B108: ='DROP Inlet'!F112 ->  | C108: ='DROP Inlet'!G112 ->  | D108: ='DROP Inlet'!H112 ->  | E108: ='DROP Inlet'!I112 ->  | F108: ='DROP Inlet'!J112 -> 
A109: ='DROP Inlet'!D113 ->  | B109: ='DROP Inlet'!F113 ->  | C109: ='DROP Inlet'!G113 ->  | D109: ='DROP Inlet'!H113 ->  | E109: ='DROP Inlet'!I113 ->  | F109: ='DROP Inlet'!J113 -> 
A110: ='DROP Inlet'!D114 ->  | B110: ='DROP Inlet'!F114 ->  | C110: ='DROP Inlet'!G114 ->  | D110: ='DROP Inlet'!H114 ->  | E110: ='DROP Inlet'!I114 ->  | F110: ='DROP Inlet'!J114 -> 
A111: ='DROP Inlet'!D115 ->  | B111: ='DROP Inlet'!F115 ->  | C111: ='DROP Inlet'!G115 ->  | D111: ='DROP Inlet'!H115 ->  | E111: ='DROP Inlet'!I115 ->  | F111: ='DROP Inlet'!J115 -> 
A112: ='DROP Inlet'!D116 ->  | B112: ='DROP Inlet'!F116 ->  | C112: ='DROP Inlet'!G116 ->  | D112: ='DROP Inlet'!H116 ->  | E112: ='DROP Inlet'!I116 ->  | F112: ='DROP Inlet'!J116 -> 
A113: ='DROP Inlet'!D117 ->  | B113: ='DROP Inlet'!F117 ->  | C113: ='DROP Inlet'!G117 ->  | D113: ='DROP Inlet'!H117 ->  | E113: ='DROP Inlet'!I117 ->  | F113: ='DROP Inlet'!J117 -> 
A114: ='DROP Inlet'!D118 ->  | B114: ='DROP Inlet'!F118 ->  | C114: ='DROP Inlet'!G118 ->  | D114: ='DROP Inlet'!H118 ->  | E114: ='DROP Inlet'!I118 ->  | F114: ='DROP Inlet'!J118 -> 
A115: ='DROP Inlet'!D119 ->  | B115: ='DROP Inlet'!F119 ->  | C115: ='DROP Inlet'!G119 ->  | D115: ='DROP Inlet'!H119 ->  | E115: ='DROP Inlet'!I119 ->  | F115: ='DROP Inlet'!J119 -> 
A116: ='DROP Inlet'!D120 ->  | B116: ='DROP Inlet'!F120 ->  | C116: ='DROP Inlet'!G120 ->  | D116: ='DROP Inlet'!H120 ->  | E116: ='DROP Inlet'!I120 ->  | F116: ='DROP Inlet'!J120 -> 
A117: ='DROP Inlet'!D121 ->  | B117: ='DROP Inlet'!F121 ->  | C117: ='DROP Inlet'!G121 ->  | D117: ='DROP Inlet'!H121 ->  | E117: ='DROP Inlet'!I121 ->  | F117: ='DROP Inlet'!J121 -> 
A118: ='DROP Inlet'!D122 ->  | B118: ='DROP Inlet'!F122 ->  | C118: ='DROP Inlet'!G122 ->  | D118: ='DROP Inlet'!H122 ->  | E118: ='DROP Inlet'!I122 ->  | F118: ='DROP Inlet'!J122 -> 
A119: ='DROP Inlet'!D123 ->  | B119: ='DROP Inlet'!F123 ->  | C119: ='DROP Inlet'!G123 ->  | D119: ='DROP Inlet'!H123 ->  | E119: ='DROP Inlet'!I123 ->  | F119: ='DROP Inlet'!J123 -> 
A120: ='DROP Inlet'!D124 ->  | B120: ='DROP Inlet'!F124 ->  | C120: ='DROP Inlet'!G124 ->  | D120: ='DROP Inlet'!H124 ->  | E120: ='DROP Inlet'!I124 ->  | F120: ='DROP Inlet'!J124 -> 
A121: ='DROP Inlet'!D125 ->  | B121: ='DROP Inlet'!F125 ->  | C121: ='DROP Inlet'!G125 ->  | D121: ='DROP Inlet'!H125 ->  | E121: ='DROP Inlet'!I125 ->  | F121: ='DROP Inlet'!J125 -> 
A122: ='DROP Inlet'!D126 ->  | B122: ='DROP Inlet'!F126 ->  | C122: ='DROP Inlet'!G126 ->  | D122: ='DROP Inlet'!H126 ->  | E122: ='DROP Inlet'!I126 ->  | F122: ='DROP Inlet'!J126 -> 
A123: ='DROP Inlet'!D127 ->  | B123: ='DROP Inlet'!F127 ->  | C123: ='DROP Inlet'!G127 ->  | D123: ='DROP Inlet'!H127 ->  | E123: ='DROP Inlet'!I127 ->  | F123: ='DROP Inlet'!J127 -> 
A124: ='DROP Inlet'!D128 ->  | B124: ='DROP Inlet'!F128 ->  | C124: ='DROP Inlet'!G128 ->  | D124: ='DROP Inlet'!H128 ->  | E124: ='DROP Inlet'!I128 ->  | F124: ='DROP Inlet'!J128 -> 
A125: ='DROP Inlet'!D129 ->  | B125: ='DROP Inlet'!F129 ->  | C125: ='DROP Inlet'!G129 ->  | D125: ='DROP Inlet'!H129 ->  | E125: ='DROP Inlet'!I129 ->  | F125: ='DROP Inlet'!J129 -> 
A126: ='DROP Inlet'!D130 ->  | B126: ='DROP Inlet'!F130 ->  | C126: ='DROP Inlet'!G130 ->  | D126: ='DROP Inlet'!H130 ->  | E126: ='DROP Inlet'!I130 ->  | F126: ='DROP Inlet'!J130 -> 
A127: ='DROP Inlet'!D131 ->  | B127: ='DROP Inlet'!F131 ->  | C127: ='DROP Inlet'!G131 ->  | D127: ='DROP Inlet'!H131 ->  | E127: ='DROP Inlet'!I131 ->  | F127: ='DROP Inlet'!J131 -> 
A128: ='DROP Inlet'!D132 ->  | B128: ='DROP Inlet'!F132 ->  | C128: ='DROP Inlet'!G132 ->  | D128: ='DROP Inlet'!H132 ->  | E128: ='DROP Inlet'!I132 ->  | F128: ='DROP Inlet'!J132 -> 
A129: ='DROP Inlet'!D133 ->  | B129: ='DROP Inlet'!F133 ->  | C129: ='DROP Inlet'!G133 ->  | D129: ='DROP Inlet'!H133 ->  | E129: ='DROP Inlet'!I133 ->  | F129: ='DROP Inlet'!J133 -> 
A130: ='DROP Inlet'!D134 ->  | B130: ='DROP Inlet'!F134 ->  | C130: ='DROP Inlet'!G134 ->  | D130: ='DROP Inlet'!H134 ->  | E130: ='DROP Inlet'!I134 ->  | F130: ='DROP Inlet'!J134 -> 
A131: ='DROP Inlet'!D135 ->  | B131: ='DROP Inlet'!F135 ->  | C131: ='DROP Inlet'!G135 ->  | D131: ='DROP Inlet'!H135 ->  | E131: ='DROP Inlet'!I135 ->  | F131: ='DROP Inlet'!J135 -> 
A132: ='DROP Inlet'!D136 ->  | B132: ='DROP Inlet'!F136 ->  | C132: ='DROP Inlet'!G136 ->  | D132: ='DROP Inlet'!H136 ->  | E132: ='DROP Inlet'!I136 ->  | F132: ='DROP Inlet'!J136 -> 
A133: ='DROP Inlet'!D137 ->  | B133: ='DROP Inlet'!F137 ->  | C133: ='DROP Inlet'!G137 ->  | D133: ='DROP Inlet'!H137 ->  | E133: ='DROP Inlet'!I137 ->  | F133: ='DROP Inlet'!J137 -> 
A134: ='DROP Inlet'!D138 ->  | B134: ='DROP Inlet'!F138 ->  | C134: ='DROP Inlet'!G138 ->  | D134: ='DROP Inlet'!H138 ->  | E134: ='DROP Inlet'!I138 ->  | F134: ='DROP Inlet'!J138 -> 
A135: ='DROP Inlet'!D139 ->  | B135: ='DROP Inlet'!F139 ->  | C135: ='DROP Inlet'!G139 ->  | D135: ='DROP Inlet'!H139 ->  | E135: ='DROP Inlet'!I139 ->  | F135: ='DROP Inlet'!J139 -> 
A136: ='DROP Inlet'!D140 ->  | B136: ='DROP Inlet'!F140 ->  | C136: ='DROP Inlet'!G140 ->  | D136: ='DROP Inlet'!H140 ->  | E136: ='DROP Inlet'!I140 ->  | F136: ='DROP Inlet'!J140 -> 
A137: ='DROP Inlet'!D141 ->  | B137: ='DROP Inlet'!F141 ->  | C137: ='DROP Inlet'!G141 ->  | D137: ='DROP Inlet'!H141 ->  | E137: ='DROP Inlet'!I141 ->  | F137: ='DROP Inlet'!J141 -> 
A138: ='DROP Inlet'!D142 ->  | B138: ='DROP Inlet'!F142 ->  | C138: ='DROP Inlet'!G142 ->  | D138: ='DROP Inlet'!H142 ->  | E138: ='DROP Inlet'!I142 ->  | F138: ='DROP Inlet'!J142 -> 
A139: ='DROP Inlet'!D143 ->  | B139: ='DROP Inlet'!F143 ->  | C139: ='DROP Inlet'!G143 ->  | D139: ='DROP Inlet'!H143 ->  | E139: ='DROP Inlet'!I143 ->  | F139: ='DROP Inlet'!J143 -> 
A140: ='DROP Inlet'!D144 ->  | B140: ='DROP Inlet'!F144 ->  | C140: ='DROP Inlet'!G144 ->  | D140: ='DROP Inlet'!H144 ->  | E140: ='DROP Inlet'!I144 ->  | F140: ='DROP Inlet'!J144 -> 
A141: ='DROP Inlet'!D145 ->  | B141: ='DROP Inlet'!F145 ->  | C141: ='DROP Inlet'!G145 ->  | D141: ='DROP Inlet'!H145 ->  | E141: ='DROP Inlet'!I145 ->  | F141: ='DROP Inlet'!J145 -> 
A142: ='DROP Inlet'!D146 ->  | B142: ='DROP Inlet'!F146 ->  | C142: ='DROP Inlet'!G146 ->  | D142: ='DROP Inlet'!H146 ->  | E142: ='DROP Inlet'!I146 ->  | F142: ='DROP Inlet'!J146 -> 
A143: ='DROP Inlet'!D147 ->  | B143: ='DROP Inlet'!F147 ->  | C143: ='DROP Inlet'!G147 ->  | D143: ='DROP Inlet'!H147 ->  | E143: ='DROP Inlet'!I147 ->  | F143: ='DROP Inlet'!J147 -> 
A144: ='DROP Inlet'!D148 ->  | B144: ='DROP Inlet'!F148 ->  | C144: ='DROP Inlet'!G148 ->  | D144: ='DROP Inlet'!H148 ->  | E144: ='DROP Inlet'!I148 ->  | F144: ='DROP Inlet'!J148 -> 
A145: ='DROP Inlet'!D149 ->  | B145: ='DROP Inlet'!F149 ->  | C145: ='DROP Inlet'!G149 ->  | D145: ='DROP Inlet'!H149 ->  | E145: ='DROP Inlet'!I149 ->  | F145: ='DROP Inlet'!J149 -> 
A146: ='DROP Inlet'!D150 ->  | B146: ='DROP Inlet'!F150 ->  | C146: ='DROP Inlet'!G150 ->  | D146: ='DROP Inlet'!H150 ->  | E146: ='DROP Inlet'!I150 ->  | F146: ='DROP Inlet'!J150 -> 
A147: ='DROP Inlet'!D151 ->  | B147: ='DROP Inlet'!F151 ->  | C147: ='DROP Inlet'!G151 ->  | D147: ='DROP Inlet'!H151 ->  | E147: ='DROP Inlet'!I151 ->  | F147: ='DROP Inlet'!J151 -> 
A148: ='DROP Inlet'!D152 ->  | B148: ='DROP Inlet'!F152 ->  | C148: ='DROP Inlet'!G152 ->  | D148: ='DROP Inlet'!H152 ->  | E148: ='DROP Inlet'!I152 ->  | F148: ='DROP Inlet'!J152 -> 
A149: ='DROP Inlet'!D153 ->  | B149: ='DROP Inlet'!F153 ->  | C149: ='DROP Inlet'!G153 ->  | D149: ='DROP Inlet'!H153 ->  | E149: ='DROP Inlet'!I153 ->  | F149: ='DROP Inlet'!J153 -> 
A150: ='DROP Inlet'!D154 ->  | B150: ='DROP Inlet'!F154 ->  | C150: ='DROP Inlet'!G154 ->  | D150: ='DROP Inlet'!H154 ->  | E150: ='DROP Inlet'!I154 ->  | F150: ='DROP Inlet'!J154 -> 
A151: ='DROP Inlet'!D155 ->  | B151: ='DROP Inlet'!F155 ->  | C151: ='DROP Inlet'!G155 ->  | D151: ='DROP Inlet'!H155 ->  | E151: ='DROP Inlet'!I155 ->  | F151: ='DROP Inlet'!J155 -> 
A152: ='DROP Inlet'!D156 ->  | B152: ='DROP Inlet'!F156 ->  | C152: ='DROP Inlet'!G156 ->  | D152: ='DROP Inlet'!H156 ->  | E152: ='DROP Inlet'!I156 ->  | F152: ='DROP Inlet'!J156 -> 
A153: ='DROP Inlet'!D157 ->  | B153: ='DROP Inlet'!F157 ->  | C153: ='DROP Inlet'!G157 ->  | D153: ='DROP Inlet'!H157 ->  | E153: ='DROP Inlet'!I157 ->  | F153: ='DROP Inlet'!J157 -> 
A154: ='DROP Inlet'!D158 ->  | B154: ='DROP Inlet'!F158 ->  | C154: ='DROP Inlet'!G158 ->  | D154: ='DROP Inlet'!H158 ->  | E154: ='DROP Inlet'!I158 ->  | F154: ='DROP Inlet'!J158 -> 
A155: ='DROP Inlet'!D159 ->  | B155: ='DROP Inlet'!F159 ->  | C155: ='DROP Inlet'!G159 ->  | D155: ='DROP Inlet'!H159 ->  | E155: ='DROP Inlet'!I159 ->  | F155: ='DROP Inlet'!J159 -> 
A156: ='DROP Inlet'!D160 ->  | B156: ='DROP Inlet'!F160 ->  | C156: ='DROP Inlet'!G160 ->  | D156: ='DROP Inlet'!H160 ->  | E156: ='DROP Inlet'!I160 ->  | F156: ='DROP Inlet'!J160 -> 
A157: ='DROP Inlet'!D161 ->  | B157: ='DROP Inlet'!F161 ->  | C157: ='DROP Inlet'!G161 ->  | D157: ='DROP Inlet'!H161 ->  | E157: ='DROP Inlet'!I161 ->  | F157: ='DROP Inlet'!J161 -> 
A158: ='DROP Inlet'!D162 ->  | B158: ='DROP Inlet'!F162 ->  | C158: ='DROP Inlet'!G162 ->  | D158: ='DROP Inlet'!H162 ->  | E158: ='DROP Inlet'!I162 ->  | F158: ='DROP Inlet'!J162 -> 
A159: ='DROP Inlet'!D163 ->  | B159: ='DROP Inlet'!F163 ->  | C159: ='DROP Inlet'!G163 ->  | D159: ='DROP Inlet'!H163 ->  | E159: ='DROP Inlet'!I163 ->  | F159: ='DROP Inlet'!J163 -> 
A160: ='DROP Inlet'!D164 ->  | B160: ='DROP Inlet'!F164 ->  | C160: ='DROP Inlet'!G164 ->  | D160: ='DROP Inlet'!H164 ->  | E160: ='DROP Inlet'!I164 ->  | F160: ='DROP Inlet'!J164 -> 
A161: ='DROP Inlet'!D165 ->  | B161: ='DROP Inlet'!F165 ->  | C161: ='DROP Inlet'!G165 ->  | D161: ='DROP Inlet'!H165 ->  | E161: ='DROP Inlet'!I165 ->  | F161: ='DROP Inlet'!J165 -> 
A162: ='DROP Inlet'!D166 ->  | B162: ='DROP Inlet'!F166 ->  | C162: ='DROP Inlet'!G166 ->  | D162: ='DROP Inlet'!H166 ->  | E162: ='DROP Inlet'!I166 ->  | F162: ='DROP Inlet'!J166 -> 
A163: ='DROP Inlet'!D167 ->  | B163: ='DROP Inlet'!F167 ->  | C163: ='DROP Inlet'!G167 ->  | D163: ='DROP Inlet'!H167 ->  | E163: ='DROP Inlet'!I167 ->  | F163: ='DROP Inlet'!J167 -> 
A164: ='DROP Inlet'!D168 ->  | B164: ='DROP Inlet'!F168 ->  | C164: ='DROP Inlet'!G168 ->  | D164: ='DROP Inlet'!H168 ->  | E164: ='DROP Inlet'!I168 ->  | F164: ='DROP Inlet'!J168 -> 
A165: ='DROP Inlet'!D169 ->  | B165: ='DROP Inlet'!F169 ->  | C165: ='DROP Inlet'!G169 ->  | D165: ='DROP Inlet'!H169 ->  | E165: ='DROP Inlet'!I169 ->  | F165: ='DROP Inlet'!J169 -> 
A166: ='DROP Inlet'!D170 ->  | B166: ='DROP Inlet'!F170 ->  | C166: ='DROP Inlet'!G170 ->  | D166: ='DROP Inlet'!H170 ->  | E166: ='DROP Inlet'!I170 ->  | F166: ='DROP Inlet'!J170 -> 
A167: ='DROP Inlet'!D171 ->  | B167: ='DROP Inlet'!F171 ->  | C167: ='DROP Inlet'!G171 ->  | D167: ='DROP Inlet'!H171 ->  | E167: ='DROP Inlet'!I171 ->  | F167: ='DROP Inlet'!J171 -> 
A168: ='DROP Inlet'!D172 ->  | B168: ='DROP Inlet'!F172 ->  | C168: ='DROP Inlet'!G172 ->  | D168: ='DROP Inlet'!H172 ->  | E168: ='DROP Inlet'!I172 ->  | F168: ='DROP Inlet'!J172 -> 
A169: ='DROP Inlet'!D173 ->  | B169: ='DROP Inlet'!F173 ->  | C169: ='DROP Inlet'!G173 ->  | D169: ='DROP Inlet'!H173 ->  | E169: ='DROP Inlet'!I173 ->  | F169: ='DROP Inlet'!J173 -> 
A170: ='DROP Inlet'!D174 ->  | B170: ='DROP Inlet'!F174 ->  | C170: ='DROP Inlet'!G174 ->  | D170: ='DROP Inlet'!H174 ->  | E170: ='DROP Inlet'!I174 ->  | F170: ='DROP Inlet'!J174 -> 
A171: ='DROP Inlet'!D175 ->  | B171: ='DROP Inlet'!F175 ->  | C171: ='DROP Inlet'!G175 ->  | D171: ='DROP Inlet'!H175 ->  | E171: ='DROP Inlet'!I175 ->  | F171: ='DROP Inlet'!J175 -> 
A172: ='DROP Inlet'!D176 ->  | B172: ='DROP Inlet'!F176 ->  | C172: ='DROP Inlet'!G176 ->  | D172: ='DROP Inlet'!H176 ->  | E172: ='DROP Inlet'!I176 ->  | F172: ='DROP Inlet'!J176 -> 
A173: ='DROP Inlet'!D177 ->  | B173: ='DROP Inlet'!F177 ->  | C173: ='DROP Inlet'!G177 ->  | D173: ='DROP Inlet'!H177 ->  | E173: ='DROP Inlet'!I177 ->  | F173: ='DROP Inlet'!J177 -> 
A174: ='DROP Inlet'!D178 ->  | B174: ='DROP Inlet'!F178 ->  | C174: ='DROP Inlet'!G178 ->  | D174: ='DROP Inlet'!H178 ->  | E174: ='DROP Inlet'!I178 ->  | F174: ='DROP Inlet'!J178 -> 
A175: ='DROP Inlet'!D179 ->  | B175: ='DROP Inlet'!F179 ->  | C175: ='DROP Inlet'!G179 ->  | D175: ='DROP Inlet'!H179 ->  | E175: ='DROP Inlet'!I179 ->  | F175: ='DROP Inlet'!J179 -> 
A176: ='DROP Inlet'!D180 ->  | B176: ='DROP Inlet'!F180 ->  | C176: ='DROP Inlet'!G180 ->  | D176: ='DROP Inlet'!H180 ->  | E176: ='DROP Inlet'!I180 ->  | F176: ='DROP Inlet'!J180 -> 
A177: ='DROP Inlet'!D181 ->  | B177: ='DROP Inlet'!F181 ->  | C177: ='DROP Inlet'!G181 ->  | D177: ='DROP Inlet'!H181 ->  | E177: ='DROP Inlet'!I181 ->  | F177: ='DROP Inlet'!J181 -> 
A178: ='DROP Inlet'!D182 ->  | B178: ='DROP Inlet'!F182 ->  | C178: ='DROP Inlet'!G182 ->  | D178: ='DROP Inlet'!H182 ->  | E178: ='DROP Inlet'!I182 ->  | F178: ='DROP Inlet'!J182 -> 
A179: ='DROP Inlet'!D183 ->  | B179: ='DROP Inlet'!F183 ->  | C179: ='DROP Inlet'!G183 ->  | D179: ='DROP Inlet'!H183 ->  | E179: ='DROP Inlet'!I183 ->  | F179: ='DROP Inlet'!J183 -> 
A180: ='DROP Inlet'!D184 ->  | B180: ='DROP Inlet'!F184 ->  | C180: ='DROP Inlet'!G184 ->  | D180: ='DROP Inlet'!H184 ->  | E180: ='DROP Inlet'!I184 ->  | F180: ='DROP Inlet'!J184 -> 
A181: ='DROP Inlet'!D185 ->  | B181: ='DROP Inlet'!F185 ->  | C181: ='DROP Inlet'!G185 ->  | D181: ='DROP Inlet'!H185 ->  | E181: ='DROP Inlet'!I185 ->  | F181: ='DROP Inlet'!J185 -> 
A182: ='DROP Inlet'!D186 ->  | B182: ='DROP Inlet'!F186 ->  | C182: ='DROP Inlet'!G186 ->  | D182: ='DROP Inlet'!H186 ->  | E182: ='DROP Inlet'!I186 ->  | F182: ='DROP Inlet'!J186 -> 
A183: ='DROP Inlet'!D187 ->  | B183: ='DROP Inlet'!F187 ->  | C183: ='DROP Inlet'!G187 ->  | D183: ='DROP Inlet'!H187 ->  | E183: ='DROP Inlet'!I187 ->  | F183: ='DROP Inlet'!J187 -> 
A184: ='DROP Inlet'!D188 ->  | B184: ='DROP Inlet'!F188 ->  | C184: ='DROP Inlet'!G188 ->  | D184: ='DROP Inlet'!H188 ->  | E184: ='DROP Inlet'!I188 ->  | F184: ='DROP Inlet'!J188 -> 
A185: ='DROP Inlet'!D189 ->  | B185: ='DROP Inlet'!F189 ->  | C185: ='DROP Inlet'!G189 ->  | D185: ='DROP Inlet'!H189 ->  | E185: ='DROP Inlet'!I189 ->  | F185: ='DROP Inlet'!J189 -> 
A186: ='DROP Inlet'!D190 ->  | B186: ='DROP Inlet'!F190 ->  | C186: ='DROP Inlet'!G190 ->  | D186: ='DROP Inlet'!H190 ->  | E186: ='DROP Inlet'!I190 ->  | F186: ='DROP Inlet'!J190 -> 
A187: ='DROP Inlet'!D191 ->  | B187: ='DROP Inlet'!F191 ->  | C187: ='DROP Inlet'!G191 ->  | D187: ='DROP Inlet'!H191 ->  | E187: ='DROP Inlet'!I191 ->  | F187: ='DROP Inlet'!J191 -> 
A188: ='DROP Inlet'!D192 ->  | B188: ='DROP Inlet'!F192 ->  | C188: ='DROP Inlet'!G192 ->  | D188: ='DROP Inlet'!H192 ->  | E188: ='DROP Inlet'!I192 ->  | F188: ='DROP Inlet'!J192 -> 
A189: ='DROP Inlet'!D193 ->  | B189: ='DROP Inlet'!F193 ->  | C189: ='DROP Inlet'!G193 ->  | D189: ='DROP Inlet'!H193 ->  | E189: ='DROP Inlet'!I193 ->  | F189: ='DROP Inlet'!J193 -> 
A190: ='DROP Inlet'!D194 ->  | B190: ='DROP Inlet'!F194 ->  | C190: ='DROP Inlet'!G194 ->  | D190: ='DROP Inlet'!H194 ->  | E190: ='DROP Inlet'!I194 ->  | F190: ='DROP Inlet'!J194 -> 
A191: ='DROP Inlet'!D195 ->  | B191: ='DROP Inlet'!F195 ->  | C191: ='DROP Inlet'!G195 ->  | D191: ='DROP Inlet'!H195 ->  | E191: ='DROP Inlet'!I195 ->  | F191: ='DROP Inlet'!J195 -> 
A192: ='DROP Inlet'!D196 ->  | B192: ='DROP Inlet'!F196 ->  | C192: ='DROP Inlet'!G196 ->  | D192: ='DROP Inlet'!H196 ->  | E192: ='DROP Inlet'!I196 ->  | F192: ='DROP Inlet'!J196 -> 
A193: ='DROP Inlet'!D197 ->  | B193: ='DROP Inlet'!F197 ->  | C193: ='DROP Inlet'!G197 ->  | D193: ='DROP Inlet'!H197 ->  | E193: ='DROP Inlet'!I197 ->  | F193: ='DROP Inlet'!J197 -> 
A194: ='DROP Inlet'!D198 ->  | B194: ='DROP Inlet'!F198 ->  | C194: ='DROP Inlet'!G198 ->  | D194: ='DROP Inlet'!H198 ->  | E194: ='DROP Inlet'!I198 ->  | F194: ='DROP Inlet'!J198 -> 
A195: ='DROP Inlet'!D199 ->  | B195: ='DROP Inlet'!F199 ->  | C195: ='DROP Inlet'!G199 ->  | D195: ='DROP Inlet'!H199 ->  | E195: ='DROP Inlet'!I199 ->  | F195: ='DROP Inlet'!J199 -> 
A196: ='DROP Inlet'!D200 ->  | B196: ='DROP Inlet'!F200 ->  | C196: ='DROP Inlet'!G200 ->  | D196: ='DROP Inlet'!H200 ->  | E196: ='DROP Inlet'!I200 ->  | F196: ='DROP Inlet'!J200 -> 
A197: ='DROP Inlet'!D201 ->  | B197: ='DROP Inlet'!F201 ->  | C197: ='DROP Inlet'!G201 ->  | D197: ='DROP Inlet'!H201 ->  | E197: ='DROP Inlet'!I201 ->  | F197: ='DROP Inlet'!J201 -> 
A198: ='DROP Inlet'!D202 ->  | B198: ='DROP Inlet'!F202 ->  | C198: ='DROP Inlet'!G202 ->  | D198: ='DROP Inlet'!H202 ->  | E198: ='DROP Inlet'!I202 ->  | F198: ='DROP Inlet'!J202 -> 
A199: ='DROP Inlet'!D203 ->  | B199: ='DROP Inlet'!F203 ->  | C199: ='DROP Inlet'!G203 ->  | D199: ='DROP Inlet'!H203 ->  | E199: ='DROP Inlet'!I203 ->  | F199: ='DROP Inlet'!J203 -> 
A200: ='DROP Inlet'!D204 ->  | B200: ='DROP Inlet'!F204 ->  | C200: ='DROP Inlet'!G204 ->  | D200: ='DROP Inlet'!H204 ->  | E200: ='DROP Inlet'!I204 ->  | F200: ='DROP Inlet'!J204 -> 
... 1 more rows

Sheet Pipe Length
G1: ='DROP Inlet'!L1 -> IaDropInlet.xls Ver 1.10
B2: Calculate the Pipe Length
A4: Project Name: | B4: =IF('DROP Inlet'!B1="","",'DROP Inlet'!B1) -> 
A5: Computed by: | B5: =IF('DROP Inlet'!B2:C2="","",'DROP Inlet'!B2:C2) -> 
A6: Date: | B6: =IF('DROP Inlet'!B3:C3="","",'DROP Inlet'!B3:C3) -> 
A7: Checked by:
A8: Date:
A9: Basic Pipe Elevations
A10: Principal Spillway Crest Elev (ft) | C10: 105
A11: Invert of Barrel Elevation (ft) | C11: 96
A12: Elbow Elev (if None, Leave 'BLANK')
A13: Length of Outlet ('BLANK' if none)
A14: Outlet Elevation (ft) | C14: 86
A16: Basic Embankment Elevations
A17: Constructed Top of Fill Elev (ft) | C17: 111
A18: Embankment Top Width | C18: 12
A19: Frontslope (H/V) | C19: 3
A20: Backslope (H/V) | C20: 3
A21: Downstream Toe Elev (ft) | C21: 85
A22: Length of Pipe Past Downstream Toe (ft) | C22: 3
F23: =IF(OR(pscrest<binvert,binvert<elb,binvert<outelev,IF(OR(elb="",lenout=""),FALSE,elb<outelev),tof<pscrest,outelev<toe),"Check your inputs","OK") -> OK
A24: Calculated Pipe Length
A25: Pipe Length (ft) | C25: =IF(F23="OK",IF(OR(elb="",lenout=""),ROUND(((binvert-outelev)^2+(overh+tw+(tof-pscrest)*fs+(tof-toe)*bs)^2)^0.5,0),ROUND(((binvert-elb)^2+(overh+tw+(tof-pscrest)*fs+(tof-toe)*bs-lenout)^2)^0.5+lenout,0)),"") -> 111
A29: Pipe Profile
A30: Station of CL of Dam | C30: 1000
A32: Pipe Profile for CADD | C32: Sta | D32: Elev
A33: Upstream Top of Riser | C33: =CL_dam-tw/2-(tof-pscrest)*fs-Riser_Diam/12 -> 972.5 | D33: =pscrest -> 105
A34: Upstream FL of Riser | C34: =CL_dam-tw/2-(tof-pscrest)*fs-Riser_Diam/12 -> 972.5 | D34: =invert -> 96
A35: Barrel Invert | C35: =CL_dam-tw/2-(tof-pscrest)*fs -> 976 | D35: =invert -> 96
A36: Elbow | C36: =IF(elbow="","",C37-len_outlet) ->  | D36: =IF(elbow="","",elbow) -> 
A37: Outlet | C37: =CL_dam+tw/2+(tof-toe)*bs+overh -> 1087 | D37: =outelev -> 86

Sheet CFS chart
B1: Project Name: | C1: =IF('DROP Inlet'!B1="","",'DROP Inlet'!B1) ->  | M1: ='DROP Inlet'!L1 -> IaDropInlet.xls Ver 1.10
B2: Computed by: | C2: =IF('DROP Inlet'!B2="","",'DROP Inlet'!B2) -> 
B3: Date: | C3: ='Pipe Length'!B6 -> 
F34: ='DROP Inlet'!J2 -> 

Sheet Info
A1: ='DROP Inlet'!L1 -> IaDropInlet.xls Ver 1.10
A2: Revised 12/12/2017
A4: Calculates flow capacity of drop inlet pipe structure consisting of a full circular riser and a circular conduit. Limiting flow conditions reviewed are:
B6: Riser weir flow
B7: Inlet orifice flow
B8: Barrel orifice flow
B9: Full pipe flow
A11: Maximum number of elevation intervals displayed is 200.
A13: Program support:
A14: USDA Natural Resources Conservation Service
A15: 693 Federal Bldg
A16: 210 Walnut St
A17: Des Moines, Iowa 50309
A18: 515.284.4135
A21: Double Click Here
A22: to View the Documentation
A23: Adobe Reader is require to open this.
A26: Updates
A27: Version 1.10
A28: Updates to match computations used in NRCS Engineering Field Tools software
A29: Weir and Orifice coefficients match EFT values
A30: Tailwater is the outlet elevation + 0.5* the pipe diameter.
A31: On the Pipe Length tab: Computations of station and elevation of the pipe profile for use in CADD were added. The user needs to input the station value of the CL of dam.
A34: Version 1.02 - December 17, 2002
A35: Added Print button on Drop Inlet tab to automatically determine number of pages to print.
